fUSD/lending_fUSD_20241106
["ID","MTS","AMOUNT","RATE_DAILY","PERIOD"]
[341475136,1730920234974,-500.0,0.00027397,2]
[341475137,1730920234983,-500.0,0.00027397,2]
[341475138,1730920234993,-500.0,0.00027397,2]
[341475139,1730920235002,-500.0,0.00027397,2]
[341475140,1730920235011,-500.0,0.00027397,2]
[341475141,1730920235021,-500.0,0.00027397,2]
[341475142,1730920235030,-500.0,0.00027397,2]
[341475143,1730920235040,-1292.06,0.00027397,2]
[341475144,1730920235049,-500.0,0.00027397,2]
[341475145,1730920235059,-500.0,0.00027397,2]
[341475146,1730920235068,-500.0,0.00027397,2]
[341475147,1730920235078,-500.0,0.00027397,2]
[341475148,1730920235088,-500.0,0.00027397,2]
[341475149,1730920235097,-500.0,0.00027397,2]
[341475150,1730920235107,-500.0,0.00027397,2]
[341475151,1730920235116,-500.0,0.00027397,2]
[341475152,1730920235126,-213.52572242,0.00027397,2]
[341475153,1730920235135,-500.0,0.00027397,2]
[341475154,1730920235145,-187.231641,0.00027397,2]
[341475155,1730920235154,-500.0,0.00027397,2]
[341475156,1730920235165,-500.0,0.00027397,2]
[341475157,1730920235174,-500.0,0.00027397,2]
[341475158,1730920235184,-500.0,0.00027397,2]
[341475159,1730920235193,-500.0,0.00027397,2]
[341475160,1730920235202,-500.0,0.00027397,2]
[341475161,1730920235211,-500.0,0.00027397,2]
[341475162,1730920235222,-1826.45,0.00027397,2]
[341475163,1730920235231,-621.32,0.00027397,2]
[341475164,1730920235241,-546.43,0.00027397,2]
[341475165,1730920235251,-500.0,0.00027397,2]
[341475166,1730920235261,-663.78,0.00027397,2]
[341475167,1730920235270,-500.0,0.00027397,2]
[341475168,1730920235280,-500.0,0.00027397,2]
[341475169,1730920235290,-500.0,0.00027397,2]
[341475170,1730920235299,-500.0,0.00027397,2]
[341475171,1730920235310,-500.0,0.00027397,2]
[341475172,1730920235320,-617.91,0.00027397,2]
[341475173,1730920235331,-500.0,0.00027397,2]
[341475174,1730920235340,-500.0,0.00027397,2]
[341475175,1730920235349,-500.0,0.00027397,2]
[341475176,1730920235358,-500.0,0.00027397,2]
[341475177,1730920235367,-500.0,0.00027397,2]
[341475178,1730920235376,-500.0,0.00027397,2]
[341475179,1730920235385,-500.0,0.00027397,2]
[341475180,1730920235394,-500.0,0.00027397,2]
[341475181,1730920235404,-500.0,0.00027397,2]
[341475182,1730920235415,-20000.0,0.00027397,2]
[341475183,1730920235425,-500.0,0.00027397,2]
[341475184,1730920235438,-1790.04,0.00027397,2]
[341475185,1730920235448,-500.0,0.00027397,2]
[341475186,1730920235457,-320.62448316,0.00027397,2]
[341475187,1730920235477,-179.37551684,0.00027397,2]
[341475188,1730920235486,-500.0,0.00027397,2]
[341475189,1730920235495,-1554.56,0.00027397,2]
[341475190,1730920235505,-500.0,0.00027397,2]
[341475191,1730920235514,-500.0,0.00027397,2]
[341475192,1730920235523,-500.0,0.00027397,2]
[341475193,1730920235533,-500.0,0.00027397,2]
[341475194,1730920235542,-525.88,0.00027397,2]
[341475195,1730920235551,-500.0,0.00027397,2]
[341475196,1730920235561,-500.0,0.00027397,2]
[341475197,1730920235570,-711.29,0.00027397,2]
[341475198,1730920235579,-500.0,0.00027397,2]
[341475199,1730920235588,-500.0,0.00027397,2]
[341475200,1730920235598,-507.16763525,0.00027397,2]
[341475201,1730920235607,-500.0,0.00027397,2]
[341475202,1730920235618,-500.0,0.00027397,2]
[341475203,1730920235631,-502.18142595,0.00027397,2]
[341475204,1730920235640,-1234.48,0.00027397,2]
[341475205,1730920235649,-500.0,0.00027397,2]
[341475206,1730920235658,-500.0,0.00027397,2]
[341475207,1730920235669,-500.0,0.00027397,2]
[341475208,1730920235678,-500.0,0.00027397,2]
[341475209,1730920235687,-500.0,0.00027397,2]
[341475210,1730920235697,-500.0,0.00027397,2]
[341475211,1730920235706,-500.0,0.00027397,2]
[341475212,1730920235715,-500.66485536,0.00027397,2]
[341475213,1730920235724,-500.0,0.00027397,2]
[341475214,1730920235734,-500.0,0.00027397,2]
[341475215,1730920235743,-1153.06,0.00027397,2]
[341475216,1730920235752,-500.0,0.00027397,2]
[341475217,1730920235762,-500.0,0.00027397,2]
[341475218,1730920235771,-500.0,0.00027397,2]
[341475219,1730920235780,-501.24994404,0.00027397,2]
[341475220,1730920235789,-500.0,0.00027397,2]
[341475221,1730920235798,-500.0,0.00027397,2]
[341475222,1730920235807,-500.0,0.00027397,2]
[341475223,1730920235816,-500.0,0.00027397,2]
[341475224,1730920235826,-500.0,0.00027397,2]
[341475225,1730920235835,-957.34,0.00027397,2]
[341475226,1730920235844,-500.0,0.00027397,2]
[341475227,1730920235853,-519.646844,0.00027397,2]
[341475228,1730920235863,-500.0,0.00027397,2]
[341475229,1730920235872,-500.0,0.00027397,2]
[341475230,1730920235881,-500.0,0.00027397,2]
[341475231,1730920235891,-500.0,0.00027397,2]
[341475232,1730920235900,-500.0,0.00027397,2]
[341475233,1730920235909,-500.0,0.00027397,2]
[341475234,1730920235918,-1196.66,0.00027397,2]
[341475235,1730920235927,-500.0,0.00027397,2]
[341475236,1730920235936,-500.0,0.00027397,2]
[341475237,1730920235945,-500.0,0.00027397,2]
[341475238,1730920235955,-1001.64,0.00027397,2]
[341475239,1730920235964,-500.0,0.00027397,2]
[341475240,1730920235973,-500.0,0.00027397,2]
[341475241,1730920235982,-381.34147522,0.00027397,2]
[341475242,1730920236056,-1023.36525247,0.00027397,2]
[341475243,1730920236067,-67.87327231,0.00027397,2]
[341475244,1730920236077,-500.0,0.00027397,2]
[341475245,1730920236086,-338.07218037,0.00027397,2]
[341475246,1730920236097,-161.92781963,0.00027397,2]
[341475247,1730920236106,-500.0,0.00027397,2]
[341475248,1730920236115,-500.0,0.00027397,2]
[341475249,1730920236124,-500.0,0.00027397,2]
[341475250,1730920236133,-358.07218037,0.00027397,2]
[341475251,1730920236147,-141.92781963,0.00027397,2]
[341475252,1730920236157,-500.0,0.00027397,2]
[341475253,1730920236167,-500.0,0.00027397,2]
[341475254,1730920236176,-1605.02,0.00027397,2]
[341475255,1730920236185,-500.0,0.00027397,2]
[341475256,1730920236195,-271.12,0.00027397,2]
[341475257,1730920236205,-500.0,0.00027397,2]
[341475258,1730920236215,-500.0,0.00027397,2]
[341475259,1730920236224,-187.77387309,0.00027397,2]
[341475260,1730920236233,-500.0,0.00027397,2]
[341475261,1730920236243,-500.0,0.00027397,2]
[341475262,1730920236252,-652.62,0.00027397,2]
[341475263,1730920236261,-500.0,0.00027397,2]
[341475264,1730920236271,-500.0,0.00027397,2]
[341475265,1730920236281,-500.0,0.00027397,2]
[341475266,1730920236291,-500.0,0.00027397,2]
[341475267,1730920236302,-500.0,0.00027397,2]
[341475268,1730920236313,-500.0,0.00027397,2]
[341475269,1730920236322,-500.0,0.00027397,2]
[341475270,1730920236333,-500.0,0.00027397,2]
[341475271,1730920236342,-500.0,0.00027397,2]
[341475272,1730920236351,-500.0,0.00027397,2]
[341475273,1730920236363,-500.0,0.00027397,2]
[341475274,1730920236372,-500.0,0.00027397,2]
[341475275,1730920236383,-500.0,0.00027397,2]
[341475276,1730920236393,-636.12724301,0.00027397,2]
[341475277,1730920236403,-500.0,0.00027397,2]
[341475278,1730920236415,-1379.21,0.00027397,2]
[341475279,1730920236607,-500.0,0.00027397,2]
[341475280,1730920236618,-500.0,0.00027397,2]
[341475281,1730920236630,-500.0,0.00027397,2]
[341475282,1730920236639,-1209.69,0.00027397,2]
[341475283,1730920236648,-500.0,0.00027397,2]
[341475284,1730920236657,-500.0,0.00027397,2]
[341475285,1730920236667,-500.0,0.00027397,2]
[341475286,1730920236678,-500.0,0.00027397,2]
[341475287,1730920236688,-1638.01,0.00027397,2]
[341475288,1730920236700,-500.0,0.00027397,2]
[341475289,1730920236711,-500.0,0.00027397,2]
[341475290,1730920236722,-500.0,0.00027397,2]
[341475291,1730920236732,-500.0,0.00027397,2]
[341475292,1730920236743,-500.0,0.00027397,2]
[341475293,1730920236754,-500.0,0.00027397,2]
[341475294,1730920236764,-1179.88,0.00027397,2]
[341475295,1730920236773,-500.0,0.00027397,2]
[341475296,1730920236783,-500.0,0.00027397,2]
[341475297,1730920236792,-639.69,0.00027397,2]
[341475298,1730920236802,-600.21,0.00027397,2]
[341475299,1730920236813,-500.0,0.00027397,2]
[341475300,1730920236824,-500.0,0.00027397,2]
[341475301,1730920236834,-500.0,0.00027397,2]
[341475302,1730920236843,-500.0,0.00027397,2]
[341475303,1730920236853,-500.0,0.00027397,2]
[341475304,1730920236862,-500.0,0.00027397,2]
[341475305,1730920236871,-500.0,0.00027397,2]
[341475306,1730920236882,-500.0,0.00027397,2]
[341475307,1730920236891,-500.0,0.00027397,2]
[341475308,1730920236900,-500.0,0.00027397,2]
[341475309,1730920236909,-500.0,0.00027397,2]
[341475310,1730920236919,-912.36,0.00027397,2]
[341475311,1730920236928,-500.0,0.00027397,2]
[341475312,1730920236937,-500.0,0.00027397,2]
[341475313,1730920236946,-500.0,0.00027397,2]
[341475314,1730920236956,-500.0,0.00027397,2]
[341475315,1730920236965,-500.0,0.00027397,2]
[341475316,1730920236975,-508.65,0.00027397,2]
[341475317,1730920236984,-500.0,0.00027397,2]
[341475318,1730920236995,-500.0,0.00027397,2]
[341475319,1730920237004,-500.0,0.00027397,2]
[341475320,1730920237014,-500.0,0.00027397,2]
[341475321,1730920237024,-500.0,0.00027397,2]
[341475322,1730920237035,-500.0,0.00027397,2]
[341475323,1730920237046,-500.0,0.00027397,2]
[341475324,1730920237057,-500.0,0.00027397,2]
[341475325,1730920237067,-610.62,0.00027397,2]
[341475326,1730920237077,-500.0,0.00027397,2]
[341475327,1730920237087,-500.0,0.00027397,2]
[341475328,1730920237098,-500.0,0.00027397,2]
[341475329,1730920237107,-500.0,0.00027397,2]
[341475330,1730920237116,-500.0,0.00027397,2]
[341475331,1730920237125,-500.0,0.00027397,2]
[341475332,1730920237135,-500.0,0.00027397,2]
[341475333,1730920237144,-500.0,0.00027397,2]
[341475334,1730920237154,-500.0,0.00027397,2]
[341475335,1730920237163,-500.0,0.00027397,2]
[341475336,1730920237173,-500.0,0.00027397,2]
[341475337,1730920237183,-500.0,0.00027397,2]
[341475338,1730920237192,-500.0,0.00027397,2]
[341475339,1730920237202,-500.0,0.00027397,2]
[341475340,1730920237211,-500.0,0.00027397,2]
[341475341,1730920237221,-500.0,0.00027397,2]
[341475342,1730920237231,-500.66112875,0.00027397,2]
[341475343,1730920237241,-500.0,0.00027397,2]
[341475344,1730920237251,-1403.53,0.00027397,2]
[341475345,1730920237261,-951.98,0.00027397,2]
[341475346,1730920237271,-500.0,0.00027397,2]
[341475347,1730920237281,-500.0,0.00027397,2]
[341475348,1730920237292,-500.0,0.00027397,2]
[341475349,1730920237302,-500.0,0.00027397,2]
[341475350,1730920237312,-500.0,0.00027397,2]
[341475351,1730920237323,-1718.49,0.00027397,2]
[341475352,1730920237339,-500.0,0.00027397,2]
[341475353,1730920237349,-770.26,0.00027397,2]
[341475354,1730920237358,-500.0,0.00027397,2]
[341475355,1730920237367,-534.23,0.00027397,2]
[341475356,1730920237376,-886.88,0.00027397,2]
[341475357,1730920237386,-500.0,0.00027397,2]
[341475358,1730920237396,-500.0,0.00027397,2]
[341475359,1730920237405,-500.0,0.00027397,2]
[341475360,1730920237415,-500.0,0.00027397,2]
[341475361,1730920237424,-500.0,0.00027397,2]
[341475362,1730920237434,-591.92,0.00027397,2]
[341475363,1730920237442,-3128.73,0.00027397,2]
[341475364,1730920237451,-500.0,0.00027397,2]
[341475365,1730920237460,-500.0,0.00027397,2]
[341475366,1730920237469,-1587.38,0.00027397,2]
[341475367,1730920237478,-500.0,0.00027397,2]
[341475368,1730920237487,-500.0,0.00027397,2]
[341475369,1730920237498,-500.0,0.00027397,2]
[341475370,1730920237509,-1225.74,0.00027397,2]
[341475371,1730920237519,-500.0,0.00027397,2]
[341475372,1730920237528,-500.0,0.00027397,2]
[341475373,1730920237538,-672.38,0.00027397,2]
[341475374,1730920237547,-500.0,0.00027397,2]
[341475375,1730920237556,-500.0,0.00027397,2]
[341475376,1730920237566,-500.0,0.00027397,2]
[341475377,1730920237584,-631.72,0.00027397,2]
[341475378,1730920237601,-500.0,0.00027397,2]
[341475379,1730920237610,-1710.63,0.00027397,2]
[341475380,1730920237621,-500.0,0.00027397,2]
[341475381,1730920237632,-500.0,0.00027397,2]
[341475382,1730920237641,-500.0,0.00027397,2]
[341475383,1730920237651,-500.0,0.00027397,2]
[341475384,1730920237660,-500.0,0.00027397,2]
[341475385,1730920237672,-500.0,0.00027397,2]
[341475386,1730920237682,-500.0,0.00027397,2]
[341475387,1730920237691,-500.0,0.00027397,2]
[341475388,1730920237701,-500.0,0.00027397,2]
[341475389,1730920237711,-500.0,0.00027397,2]
[341475390,1730920237720,-500.0,0.00027397,2]
[341475391,1730920237729,-200.0,0.00027397,2]
[341475392,1730920237738,-813.74,0.00027397,2]
[341475393,1730920237747,-500.0,0.00027397,2]
[341475394,1730920237756,-500.0,0.00027397,2]
[341475395,1730920237766,-500.0,0.00027397,2]
[341475396,1730920237775,-500.0,0.00027397,2]
[341475397,1730920237784,-503.39764048,0.00027397,2]
[341475398,1730920237793,-500.0,0.00027397,2]
[341475399,1730920237803,-500.0,0.00027397,2]
[341475400,1730920237812,-500.0,0.00027397,2]
[341475401,1730920237821,-500.0,0.00027397,2]
[341475402,1730920237830,-747.59,0.00027397,2]
[341475403,1730920237840,-1093.9,0.00027397,2]
[341475404,1730920237849,-500.0,0.00027397,2]
[341475405,1730920237858,-500.0,0.00027397,2]
[341475406,1730920237867,-500.0,0.00027397,2]
[341475407,1730920237876,-519.97087617,0.00027397,2]
[341475408,1730920237885,-500.0,0.00027397,2]
[341475409,1730920237895,-500.0,0.00027397,2]
[341475410,1730920237905,-500.0,0.00027397,2]
[341475411,1730920237914,-500.0,0.00027397,2]
[341475412,1730920237924,-500.0,0.00027397,2]
[341475413,1730920237934,-500.0,0.00027397,2]
[341475414,1730920237944,-559.12,0.00027397,2]
[341475415,1730920237954,-500.95002226,0.00027397,2]
[341475416,1730920237963,-500.0,0.00027397,2]
[341475417,1730920237973,-500.0,0.00027397,2]
[341475418,1730920237982,-500.0,0.00027397,2]
[341475419,1730920237992,-500.0,0.00027397,2]
[341475420,1730920238001,-869.22,0.00027397,2]
[341475421,1730920238011,-500.0,0.00027397,2]
[341475422,1730920238021,-815.31,0.00027397,2]
[341475423,1730920238031,-828.15,0.00027397,2]
[341475424,1730920238041,-500.0,0.00027397,2]
[341475425,1730920238060,-500.0,0.00027397,2]
[341475426,1730920238070,-500.0,0.00027397,2]
[341475427,1730920238080,-948.69,0.00027397,2]
[341475428,1730920238090,-500.0,0.00027397,2]
[341475429,1730920238099,-500.0,0.00027397,2]
[341475430,1730920238109,-500.0,0.00027397,2]
[341475431,1730920238119,-343.54248678,0.00027397,2]
[341475432,1730920238128,-500.0,0.00027397,2]
[341475433,1730920238138,-500.0,0.00027397,2]
[341475434,1730920238147,-500.0,0.00027397,2]
[341475435,1730920238157,-500.0,0.00027397,2]
[341475436,1730920238166,-259.6286914,0.00027397,2]
[341475437,1730920238176,-712.2,0.00027397,2]
[341475438,1730920238185,-6450.1,0.00027397,2]
[341475439,1730920238195,-500.0,0.00027397,2]
[341475440,1730920238204,-500.0,0.00027397,2]
[341475441,1730920238214,-169.74278846,0.00027397,2]
[341475442,1730920238223,-1961.14,0.00027397,2]
[341475443,1730920238232,-306.75218063,0.00027397,2]
[341475444,1730920238242,-2553.79,0.00027397,2]
[341475445,1730920238252,-500.0,0.00027397,2]
[341475446,1730920238262,-500.0,0.00027397,2]
[341475447,1730920238272,-933.76,0.00027397,2]
[341475448,1730920238281,-500.0,0.00027397,2]
[341475449,1730920238291,-500.0,0.00027397,2]
[341475450,1730920238300,-500.0,0.00027397,2]
[341475451,1730920238310,-619.47,0.00027397,2]
[341475453,1730920238320,-500.0,0.00027397,2]
[341475455,1730920238332,-1552.17,0.00027397,2]
[341475457,1730920238342,-500.0,0.00027397,2]
[341475459,1730920238352,-500.0,0.00027397,2]
[341475460,1730920238361,-500.0,0.00027397,2]
[341475462,1730920238371,-500.0,0.00027397,2]
[341475464,1730920238380,-852.71,0.00027397,2]
[341475465,1730920238390,-985.31,0.00027397,2]
[341475466,1730920238399,-500.0,0.00027397,2]
[341475467,1730920238409,-500.0,0.00027397,2]
[341475468,1730920238419,-500.0,0.00027397,2]
[341475469,1730920238429,-502.40669181,0.00027397,2]
[341475472,1730920238439,-1319.54,0.00027397,2]
[341475474,1730920238447,-500.0,0.00027397,2]
[341475475,1730920238457,-500.0,0.00027397,2]
[341475476,1730920238467,-500.0,0.00027397,2]
[341475477,1730920238476,-500.0,0.00027397,2]
[341475478,1730920238486,-1040.45,0.00027397,2]
[341475479,1730920238496,-500.0,0.00027397,2]
[341475480,1730920238505,-544.73,0.00027397,2]
[341475481,1730920238515,-500.0,0.00027397,2]
[341475482,1730920238524,-1243.71,0.00027397,2]
[341475483,1730920238534,-1047.75,0.00027397,2]
[341475484,1730920238543,-809.24,0.00027397,2]
[341475485,1730920238553,-500.0,0.00027397,2]
[341475486,1730920238563,-500.0,0.00027397,2]
[341475487,1730920238572,-508.7,0.00027397,2]
[341475488,1730920238585,-2961.59,0.00027397,2]
[341475489,1730920238594,-1768.07,0.00027397,2]
[341475490,1730920238604,-500.0,0.00027397,2]
[341475491,1730920238613,-509.4601216,0.00027397,2]
[341475492,1730920238627,-500.0,0.00027397,2]
[341475493,1730920238637,-3662.42,0.00027397,2]
[341475494,1730920238646,-500.0,0.00027397,2]
[341475495,1730920238656,-500.0,0.00027397,2]
[341475496,1730920238666,-500.0,0.00027397,2]
[341475497,1730920238676,-626.81,0.00027397,2]
[341475498,1730920238686,-500.0,0.00027397,2]
[341475499,1730920238696,-543.01,0.00027397,2]
[341475500,1730920238705,-706.05,0.00027397,2]
[341475501,1730920238716,-500.0,0.00027397,2]
[341475502,1730920238726,-500.0,0.00027397,2]
[341475503,1730920238735,-500.0,0.00027397,2]
[341475504,1730920238745,-500.0,0.00027397,2]
[341475505,1730920238754,-651.62,0.00027397,2]
[341475506,1730920238764,-500.0,0.00027397,2]
[341475507,1730920238773,-2251.89,0.00027397,2]
[341475508,1730920238782,-1884.31,0.00027397,2]
[341475509,1730920238791,-500.0,0.00027397,2]
[341475510,1730920238802,-502.78400312,0.00027397,2]
[341475511,1730920238811,-500.0,0.00027397,2]
[341475512,1730920238821,-732.87,0.00027397,2]
[341475513,1730920238833,-500.0,0.00027397,2]
[341475514,1730920238842,-500.0,0.00027397,2]
[341475515,1730920238852,-500.0,0.00027397,2]
[341475516,1730920238861,-500.0,0.00027397,2]
[341475517,1730920238871,-2703.76,0.00027397,2]
[341475518,1730920238881,-759.2,0.00027397,2]
[341475519,1730920238891,-503.7064466,0.00027397,2]
[341475520,1730920238901,-730.51,0.00027397,2]
[341475521,1730920238910,-500.0,0.00027397,2]
[341475522,1730920238919,-601.73,0.00027397,2]
[341475523,1730920238929,-500.0,0.00027397,2]
[341475524,1730920238939,-500.0,0.00027397,2]
[341475525,1730920238948,-1846.6,0.00027397,2]
[341475526,1730920238958,-500.0,0.00027397,2]
[341475527,1730920238967,-500.0,0.00027397,2]
[341475528,1730920238977,-500.0,0.00027397,2]
[341475529,1730920238987,-500.0,0.00027397,2]
[341475530,1730920238997,-500.0,0.00027397,2]
[341475531,1730920239007,-500.0,0.00027397,2]
[341475532,1730920239019,-2388.47,0.00027397,2]
[341475533,1730920239030,-500.0,0.00027397,2]
[341475534,1730920239040,-217.442755,0.00027397,2]
[341475535,1730920239056,-10275.63,0.00027397,2]
[341475536,1730920239065,-500.0,0.00027397,2]
[341475537,1730920239075,-500.0,0.00027397,2]
[341475538,1730920239086,-500.0,0.00027397,2]
[341475539,1730920239096,-1087.87,0.00027397,2]
[341475540,1730920239105,-228.879307,0.00027397,2]
[341475541,1730920239115,-500.0,0.00027397,2]
[341475542,1730920239125,-934.72,0.00027397,2]
[341475543,1730920239135,-1027.83,0.00027397,2]
[341475544,1730920239145,-500.0,0.00027397,2]
[341475545,1730920239155,-503.65675156,0.00027397,2]
[341475546,1730920239164,-500.0,0.00027397,2]
[341475547,1730920239174,-154.520211,0.00027397,2]
[341475548,1730920239184,-500.0,0.00027397,2]
[341475549,1730920239193,-500.0,0.00027397,2]
[341475550,1730920239203,-500.0,0.00027397,2]
[341475551,1730920239212,-500.0,0.00027397,2]
[341475552,1730920239222,-500.0,0.00027397,2]
[341475553,1730920239231,-507.0966865,0.00027397,2]
[341475554,1730920239240,-680.02,0.00027397,2]
[341475555,1730920239249,-984.02,0.00027397,2]
[341475556,1730920239259,-152.709932,0.00027397,2]
[341475557,1730920239268,-502.75846097,0.00027397,2]
[341475558,1730920239278,-2654.17,0.00027397,2]
[341475559,1730920239287,-500.0,0.00027397,2]
[341475560,1730920239297,-763.29,0.00027397,2]
[341475561,1730920239306,-2923.01,0.00027397,2]
[341475562,1730920239494,-500.0,0.00027397,2]
[341475563,1730920239545,-505.78120344,0.00027397,2]
[341475564,1730920239556,-500.0,0.00027397,2]
[341475565,1730920239566,-500.0,0.00027397,2]
[341475566,1730920239575,-500.0,0.00027397,2]
[341475567,1730920239587,-500.0,0.00027397,2]
[341475568,1730920239597,-1057.64,0.00027397,2]
[341475569,1730920239607,-500.0,0.00027397,2]
[341475570,1730920239616,-500.0,0.00027397,2]
[341475571,1730920239630,-500.0,0.00027397,2]
[341475572,1730920239639,-500.0,0.00027397,2]
[341475573,1730920239649,-500.0,0.00027397,2]
[341475574,1730920239658,-501.30922786,0.00027397,2]
[341475575,1730920239669,-500.0,0.00027397,2]
[341475576,1730920239679,-500.0,0.00027397,2]
[341475577,1730920239688,-500.0,0.00027397,2]
[341475578,1730920239699,-500.0,0.00027397,2]
[341475579,1730920239709,-669.62,0.00027397,2]
[341475580,1730920239719,-500.0,0.00027397,2]
[341475581,1730920239729,-718.6,0.00027397,2]
[341475582,1730920239739,-3084.36,0.00027397,2]
[341475583,1730920239749,-500.0,0.00027397,2]
[341475584,1730920239758,-500.0,0.00027397,2]
[341475585,1730920239768,-727.89,0.00027397,2]
[341475586,1730920239778,-1861.65,0.00027397,2]
[341475587,1730920239787,-503.74562051,0.00027397,2]
[341475588,1730920239797,-500.0,0.00027397,2]
[341475589,1730920239807,-36940.57,0.00027397,2]
[341475590,1730920239817,-500.0,0.00027397,2]
[341475591,1730920239826,-500.0,0.00027397,2]
[341475592,1730920239838,-1316.34,0.00027397,2]
[341475593,1730920239847,-3009.75,0.00027397,2]
[341475594,1730920239857,-500.0,0.00027397,2]
[341475595,1730920239866,-503.5069224,0.00027397,2]
[341475596,1730920239876,-500.0,0.00027397,2]
[341475597,1730920239885,-500.0,0.00027397,2]
[341475598,1730920239895,-500.0,0.00027397,2]
[341475599,1730920239905,-1149.45,0.00027397,2]
[341475600,1730920239914,-500.0,0.00027397,2]
[341475601,1730920239924,-500.0,0.00027397,2]
[341475602,1730920239934,-539.21,0.00027397,2]
[341475603,1730920239944,-500.0,0.00027397,2]
[341475604,1730920239953,-4459.35,0.00027397,2]
[341475605,1730920239963,-580.25,0.00027397,2]
[341475606,1730920239973,-6541.84,0.00027397,2]
[341475607,1730920239982,-500.0,0.00027397,2]
[341475608,1730920239992,-500.0,0.00027397,2]
[341475609,1730920240001,-1631.52,0.00027397,2]
[341475610,1730920240010,-500.0,0.00027397,2]
[341475611,1730920240020,-777.39,0.00027397,2]
[341475612,1730920240029,-427.04972911,0.00027397,2]
[341475613,1730920240039,-500.0,0.00027397,2]
[341475614,1730920240049,-500.0,0.00027397,2]
[341475615,1730920240058,-500.0,0.00027397,2]
[341475616,1730920240068,-2448.68,0.00027397,2]
[341475617,1730920240079,-500.0,0.00027397,2]
[341475618,1730920240089,-1675.07,0.00027397,2]
[341475619,1730920240099,-1611.55,0.00027397,2]
[341475620,1730920240109,-500.0,0.00027397,2]
[341475621,1730920240118,-7500.0,0.00027397,2]
[341475622,1730920240128,-500.0,0.00027397,2]
[341475623,1730920240137,-500.0,0.00027397,2]
[341475624,1730920240147,-500.0,0.00027397,2]
[341475625,1730920240157,-7500.0,0.00027397,2]
[341475626,1730920240167,-2842.56,0.00027397,2]
[341475627,1730920240176,-7500.0,0.00027397,2]
[341475628,1730920240185,-500.0,0.00027397,2]
[341475629,1730920240195,-500.0,0.00027397,2]
[341475630,1730920240205,-2090.64,0.00027397,2]
[341475631,1730920240215,-500.0,0.00027397,2]
[341475632,1730920240224,-442.984832,0.00027397,2]
[341475633,1730920240233,-500.0,0.00027397,2]
[341475634,1730920240242,-729.17,0.00027397,2]
[341475635,1730920240253,-4119.94,0.00027397,2]
[341475636,1730920240262,-500.0,0.00027397,2]
[341475637,1730920240271,-1561.32,0.00027397,2]
[341475638,1730920240282,-500.0,0.00027397,2]
[341475640,1730920240291,-497.09331045,0.00027397,2]
[341475642,1730920240301,-500.0,0.00027397,2]
[341475644,1730920240311,-1446.82,0.00027397,2]
[341475645,1730920240320,-908.03,0.00027397,2]
[341475647,1730920240331,-500.0,0.00027397,2]
[341475648,1730920240341,-500.0,0.00027397,2]